Cogmind - Beta 11.1 @@@ ROGUE MODE // 2022.07.26 @ 04:21:50 Player: Vena Result: Destroyed by S-10 Pest with Light Assault Rifle Performance ------------- Evolutions (0) 0 Regions Visited (1) 200 Robots Destroyed (2) 10 Value Destroyed (91) 91 Prototype IDs (0) 0 Alien Tech Used (0) 0 Bonus (0) 0 TOTAL SCORE: 301 Bonus ------- None Cogmind --------- Core Integrity 0/250 Matter 248/300 Energy 100/100 System Corruption 0% Temperature Cool (0) Movement Walking (190) Ox1 Location -10/Materials Parts ------- > --- POWER (1) -------- (None) > --- PROPULSION (2) --- Aluminum Leg > --- UTILITY (2) ------ Medium Storage Unit Core Shielding > --- WEAPON (2) ------- (None) > --- INVENTORY (10) --- Light Ion Engine Aluminum Leg Aluminum Leg Flight Unit Medium Battery (150) Weapon Shielding Peak State ------------ > --- POWER ------------ Ion Engine > --- PROPULSION ------- Light Treads Light Treads > --- UTILITY ---------- Small Storage Unit Medium Storage Unit > --- WEAPON ----------- EM Pulse Gun Light Assault Rifle > --- INVENTORY -------- Light Ion Engine Aluminum Leg Aluminum Leg [Rating: 7] Favorites ----------- Power Ion Engine Engine Ion Engine Propulsion Light Treads Treads Light Treads Leg Aluminum Leg Flight Unit Flight Unit Utility Medium Storage Unit Storage Medium Storage Unit Protection Core Shielding Weapon Light Assault Rifle Energy Gun EM Pulse Gun Ballistic Gun Light Assault Rifle Special Weapon Mining Laser Build | -11 -10 ------- Run | Scr Mat Slots Evolved . | . . Power . | . . Propulsion . | . . Utility . | . . Weapon . | . . Parts Attached 18 | 5 13 Power 2 | 1 1 Engine 2 | 1 1 Core . | . . Reactor . | . . Propulsion 6 | 1 5 Treads 2 | 1 1 Leg 3 | . 3 Wheel . | . . Hover . | . . Flight 1 | . 1 Utility 4 | 1 3 Device . | . . Storage 2 | 1 1 Processor . | . . Hackware . | . . Protection 2 | . 2 Artifact . | . . Weapon 6 | 2 4 Energy Gun 1 | 1 . Energy Cannon . | . . Ballistic Gun 2 | 1 1 Ballistic Cannon . | . . Launcher . | . . Special Weapon 3 | . 3 Impact Weapon . | . . Slashing Weapon . | . . Piercing Weapon . | . . Special Melee Weapon . | . . Unidentified Prototypes . | . . Parts Lost 8 | . 8 Power 1 | . 1 Propulsion 1 | . 1 Utility . | . . Weapon 6 | . 6 Highest Loss Streak 6 | . 6 To Critical Strikes 1 | . 1 Average Slot Usage (%) 87 | . 87 Engine 12 | . 12 Treads 12 | . 12 Leg 14 | . 14 Storage 14 | . 14 Protection 12 | . 12 Energy Gun 4 | . 4 Ballistic Gun 11 | . 11 Special Weapon 2 | . 2 Naked Turns . | . . Heaviest Build 19 | 13 19 Greatest Support 40 | 20 40 Greatest Overweight (x) 1 | . 1 Average Overweight (x) . | . . Largest Inventory Capacity 10 | 8 10 Average Capacity 9 | 7 9 Most Carried 8 | 4 8 Average Carried 4 | 2 4 Final Capacity 10 | 8 10 Final Carried 6 | 4 6 Class Distribution -------------------- 100% | Mutant Dominant Class ---------------- Mutant | -10/Materials Resources | -11 -10 ----------- Run | Scr Mat Matter Collected 294 | 201 93 Remotely . | . . Salvage Created 90 | . 90 Parts 4 | . 4 Haulers Intercepted . | . . Recyclers Shooed . | . . Parts Field Recycled . | . . Retrieved Matter . | . . Parts Self-Destructed . | . . Prevented . | . . Kills | -11 -10 ------- Run | Scr Mat Combat Hostiles Destroyed 2 | . 2 Guns 2 | . 2 Classes Destroyed 1 | . 1 Grunt 2 | . 2 Best Kill Streak 1 | . 1 Combat Bots Only 1 | . 1 Max Kills in Single Turn 1 | . 1 Gunslinging . | . . Exploded . | . . Melee . | . . Uniques/NPCs Destroyed . | . . Combat | -11 -10 -------- Run | Scr Mat Damage Taken 1107 | . 1107 Core 251 | . 251 Absorbed by Shields . | . . Redirected to Shielding 50 | . 50 Regen/Repaired (Parts) 25 | . 25 Core Remaining (%) 100 | 100 . Volleys Fired 40 | . 40 Largest 2 | . 2 Hottest 120 | . 120 Shots Fired 54 | . 54 Gun 47 | . 47 Cannon . | . . Launcher . | . . Special 7 | . 7 Kinetic 34 | . 34 Thermal 7 | . 7 Explosive . | . . Electromagnetic 13 | . 13 Robot Hit Streak 4 | . 4 Robot Miss Streak 3 | . 3 Penetration Max . | . . Secondary Targets . | . . Shots Hit Robots 31 | . 31 Core Hits 9 | . 9 Critical Kills . | . . Critical Parts Destroyed . | . . Critical Strikes . | . . Melee Attacks . | . . Impact . | . . Slashing . | . . Piercing . | . . Sneak Attacks . | . . Combat Hostiles . | . . Follow-up Attacks . | . . Damage Inflicted 336 | . 336 Guns 265 | . 265 Cannons . | . . Explosions . | . . Melee . | . . Ramming 23 | . 23 Kinetic 188 | . 188 Thermal 48 | . 48 Explosive . | . . Electromagnetic 77 | . 77 Impact . | . . Slashing . | . . Piercing . | . . Highest Corruption . | . . Average Corruption . | . . Corruption Purged . | . . Corruption Blocked . | . . Overload Shots . | . . Overflow Damage 4 | . 4 Projectiles 4 | . 4 Explosions . | . . Melee . | . . Knockbacks . | . . Impact . | . . Kinetic . | . . Secondary . | . . Self-Inflicted Damage . | . . Shots . | . . Rammed . | . . Targets Rammed 9 | . 9 Kicked 9 | . 9 Crushed . | . . Highest Temperature 142 | . 142 Average Temperature 50 | . 50 Received Heat Transfer 363 | . 363 Siege Activations . | . . Robots Corrupted . | . . Combat Hostiles . | . . Parts Fried . | . . Impact Corruptions . | . . Robots Melted . | . . Combat Hostiles . | . . Parts Melted . | . . Heat Transferred 100 | . 100 Parts Sabotaged . | . . Parts Stolen . | . . Parts Stripped . | . . Power Chain Reactions . | . . Missiles Intercepted . | . . Alert | -11 -10 ------- Run | Scr Mat Peak Influence 65 | . 65 Initial . | . . Average 21 | . 25 Maximum Alert Level . | . . Low Security (%) 100 | 100 100 Level 1 . | . . Level 2 . | . . Level 3 . | . . Level 4 . | . . Level 5 . | . . High Security . | . . Max Security . | . . Squads Dispatched . | . . Investigation . | . . Extermination . | . . Reinforcement . | . . Assault . | . . Garrison . | . . Intercept . | . . Searches Triggered . | . . Construction Impeded . | . . Haulers Reinforced . | . . Active Scanning Responses . | . . Cargo Convoy Interrupts . | . . Stealth | -11 -10 --------- Run | Scr Mat Distress Signals 1 | . 1 Communications Jammed . | . . Distress Signals . | . . Times Spotted 12 | . 12 Peak Tracking Total 7 | . 7 Tactical Retreats 3 | . 3 Traps | -11 -10 ------- Run | Scr Mat Traps Triggered . | . . Indirectly . | . . Trap Hack Attempts . | . . Triggered . | . . Disarmed . | . . Reprogrammed . | . . Reused . | . . Traps Extracted . | . . Installed . | . . Triggered . | . . Machines | -11 -10 ---------- Run | Scr Mat Machines Disabled 1 | . 1 Max in Single Turn 1 | . 1 Machines Sabotaged . | . . Garrisons Compromised . | . . Overloaded Fab Kills . | . . Hacking | -11 -10 --------- Run | Scr Mat Machines Accessed 4 | . 4 Terminals 1 | . 1 Fabricators . | . . Repair Stations 1 | . 1 Recycling Units 2 | . 2 Scanalyzers . | . . Garrison Access . | . . Total Hacks 14 | . 14 Successful 11 | . 11 Failed 3 | . 3 Catastrophic . | . . Database Lockouts . | . . Manual . | . . Terminals 6 | . 6 Fabricators . | . . Repair Stations 2 | . 2 Recycling Units 6 | . 6 Scanalyzers . | . . Garrison Access . | . . Terminal Hacks 4 | . 4 Record 1 | . 1 Alert Level 1 | . 1 Locate Traps 1 | . 1 Hauler Manifests 1 | . 1 Fabricator Hacks . | . . Repair Station Hacks 2 | . 2 Scan Component 1 | . 1 Repair 1 | . 1 Recycling Unit Hacks 5 | . 5 Recycle Component 1 | . 1 Process 2 | . 2 Report Inventory 2 | . 2 Scanalyzer . | . . Garrison Access Hacks . | . . Unauthorized Hacks . | . . Terminals . | . . Fabricators . | . . Repair Stations . | . . Recycling Units . | . . Scanalyzers . | . . Garrison Access . | . . Data Cores Recovered . | . . Used . | . . Hacking Detections 3 | . 3 Full Trace Events 1 | . 1 Feedback Events . | . . Feedback Blocked . | . . Robot Schematics Acquired . | . . Robots Built . | . . Authchips . | . . Time . | . . Total Robot Build Rating . | . . Part Schematics Acquired . | . . Parts Built . | . . Authchips . | . . Time . | . . Total Part Build Rating . | . . Parts Repaired 1 | . 1 Time 26 | . 26 Parts Recycled 1 | . 1 Recycled Matter 216 | . 216 Retrieved Matter . | . . Retrieved Components . | . . Parts Scanalyzed . | . . Part Schematics Acquired . | . . Parts Damaged . | . . Bothacking | -11 -10 ------------ Run | Scr Mat Used RIF Installer . | . . Robots Hacked . | . . Non-combat . | . . Combat . | . . Robot Hacks Applied . | . . Relay Couplers Released . | . . Fabnet Peak Effective % . | . . Robots Rewired . | . . Allies Hacked . | . . Hacks Repelled . | . . Allies | -11 -10 -------- Run | Scr Mat Total Allies . | . . Largest Group . | . . Highest-Rated Group . | . . Highest-Rated Ally . | . . Total Orders . | . . Ally Attacks . | . . Total Damage . | . . Kills . | . . Allies Corrupted . | . . Allies Melted . | . . Intel | -11 -10 ------- Run | Scr Mat Robot Analysis Total . | . . Derelict Logs Recovered . | . . Drone Launches . | . . Drone Recoveries . | . . Exploration | -11 -10 ------------- Run | Scr Mat Turns Passed 623 | 96 527 Spaces Moved 316 | 56 260 Core 10 | 10 . Treads 151 | 46 105 Legs 155 | . 155 Wheels . | . . Hover . | . . Flight . | . . Fastest Speed 50 | 50 120 Average Speed 137 | 140 136 Slowest Speed 190 | 160 190 Overloaded Moves . | . . Propulsion Burnouts . | . . Robots Hopped . | . . Cave-ins Triggered . | . . Exploration Rate (%) 21 | 5 37 Regions Visited 1 Branch Regions . Pre-discovered Areas . | . . Known Exits Taken . | . . Unknown Exits Taken 1 | 1 . Scrap Searched . | . . Spaces Dug 1 | . 1 Terrain Destroyed 1 | . 1 Melee . | . . Projectile 1 | . 1 AOE . | . . Terrain Rammed . | . . Walls Destroyed . | . . Machines Disabled . | . . Actions | -11 -10 --------- Run | Scr Mat Total 443 | 71 372 Wait 45 | 7 38 Move 315 | 55 260 Hop . | . . Pick Up 13 | 4 9 Fast Attach 8 | 5 3 Attach 5 | . 5 Detach . | . . Swap 5 | . 5 Drop 3 | . 3 Fire 40 | . 40 Melee . | . . Ram . | . . Kick 9 | . 9 Crush . | . . Escape Stasis . | . . Rewire . | . . Trap . | . . Miscellaneous . | . . Route ------- -11/Scrapyard -10/Materials (discovered 1 exit: [*Min]) History --------- Turn | Location | Event 9 | -11/Scrapyard | Discovered new exit (range 16) 97 | -11/Scrapyard | Entered Materials 319 | -10/Materials | Build established: Mutant 319 | -10/Materials | Core integrity fell below 50% 506 | -10/Materials | Discovered new exit (range 6) 572 | -10/Materials | Repaired Ion Engine 619 | -10/Materials | Core integrity fell below 20% 624 | -10/Materials | Destroyed by S-10 Pest with Light Assault Rifle Last Messages --------------- 00600_ S-10 Pest destroyed. 00601_ Acquired 13 matter. 00606_ Repair Station disabled. 00607_ R-06 Scavenger collects Lgt. Ion Engine. 00610_ R-06 Scavenger collects Hover Unit. 00611_ Destroyed Flight Unit. 00615_ Mining Laser destroyed. 00615_ K-01 Serf collects debris. 00616_ Kicked S-10 Pest. 00617_ Welding Torch destroyed. 00618_ Kicked S-10 Pest out of the way. 00619_ K-01 Serf collects debris. 00619_ Kicked S-10 Pest. 00619_ Ion Engine destroyed. 00619_ R-06 Scavenger collects Flight Unit. 00620_ Kicked S-10 Pest. 00620_ Aluminum Leg destroyed. 00621_ Kicked S-10 Pest out of the way. 00622_ K-01 Serf collects debris. 00623_ S-10 Pest destroyed. Map ----- +----------------------------------------------------+ | ????????????????????????# #################???? | | ???????????????????###### ##### | | ??????##############"""## # | | ??????# ##"Y"## # """ | | ??????# + ############ # """ | | ??????# # = #????####### # """ | | ??????# # =! #####????# # + """ | | ??????# # #????????# "" # # """ | | ??????# # ########## Y" # # | | ??????# # ## ## "" # # | | ??????#+####+###+## ## """ ## # ##### | | ??????????# ## """ ## # #???? | | ??????????# """ # """ ## % # ####? | | ??????????# """ # ####+### !!## | | ??????????# """ # """ # # | | ??????? ### # """ + !# | | ?????# r # "" # !! !# | | ?????# "T" # # !! !# | | ?????+ # """ # ! !!## | | ?????# # """ # ####? | | ?????# ######### # """ # #???? | | ????? # # # # ! #???? | | ????? ######## !! #???? | | ????? < r !! #???? | | ?????? ######### ######+###### | | ???????? ##### ##k@ # ## #?# # | | ??????????????# "|" " ##ssr# """ ## #?# """ # | | ??????????????#""|" ""## *%s "R ## #?# """"" # | | ??????????????########## k#s "" ## #?# """"" # | | ???????????????????????# # ## #?# """"" # | | ???????????????????????# # ## #?# """ # | | ???????????????????????# ######### #?# # | | ???????????????????????+ #???###?# #?# # | | ?????????????????????? # #???????# ?########### | | ????????????????????? # #???????? ???????????? | | ???????????????????? ?# #???????? ???????????? | | ???????????????????##??# m#???????? ???????????? | | ???????????????????????+^^^ ???????? ???????????? | | ???????????????????????# #???????? ???????????? | | ???????????????????????# #???????? ???????????? | | ???????????????????????# #???????? ???????????? | | ???????????????????????# #?????????????????????? | | ???????????????????????# +?????????????????????? | | ???????????????????????? #?????????????????????? | | ???????????????????????? ??????????????????????? | | ?????????????????????????????????????????????????? | | ?????????????????????????????????????????????????? | | ?????????????????????????????????????????????????? | | ?????????????????????????????????????????????????? | | ?????????????????????????????????????????????????? | +----------------------------------------------------+ Best States ------------- Heat Dissipation 25 Energy Generation 10 Energy Capacity 250 Matter Stores 251 Matter Capacity 300 Sight Range 16 Terrain Scan Density 10 Core Shielding 20 Evasion (%) 55 Recoil Reduction 2 Item Schematics ----------------- None Robot Schematics ------------------ None Fabricated ------------ Nothing Alien Tech Used ----------------- None Achievements -------------- None Challenges ------------ None Game ------ Seed MolecularChainRifle Manual? 0 Play Time 00:31:43 Cumulative 6.5 hours Start 2022.07.26 @ 03:45:38 End 2022.07.26 @ 04:21:50 Sessions 1 Manual Loads 0 Difficulty Rogue Special Mode None Game No. 12 Rogue 12 Adventurer 0 Explorer 0 Win Type - Total 0 Types 0/0/0/0/0/0/0/0/0 Lore% 5 Gallery% 6 Achievement% 9 Wizard Run 0 Options --------- ASCII 0 Keyboard 0 Movement Numpad Keybinds 0 Fullscreen 2 Font 24/Smallcaps Map View 76x50 Tactical HUD 1 Map Filters NONE Filters NONE Steam 1 RUN: 62195867-c7d6-45d9-b413-3d3c4080aae1